[Event "Late-Titled-Tuesday-Blitz-June-25-2024"]
[Site "Chess.com"]
[Date "2024.06.25"]
[Round "4"]
[White "reevecanada"]
[Black "malakismayil"]
[Result "0-1"]
[WhiteElo "2700"]
[BlackElo "2559"]
[TimeControl "180+1"]
[EndTime "14:38:23 PDT"]
[Termination "malakismayil won by checkmate"]

1. Nf3 {[%clk 0:03:00.9]} 1... Nf6 {[%clk 0:02:55.4]} 2. b3 {[%clk 0:03:00.1]}
2... d5 {[%clk 0:02:55.8]} 3. Bb2 {[%clk 0:03:00.4]} 3... e6 {[%clk 0:02:56.4]}
4. d3 {[%clk 0:03:00.9]} 4... Be7 {[%clk 0:02:53.3]} 5. Nbd2 {[%clk 0:03:00.4]}
5... O-O {[%clk 0:02:53.9]} 6. e4 {[%clk 0:02:59.9]} 6... c5 {[%clk 0:02:54.6]}
7. g3 {[%clk 0:02:58.8]} 7... Nc6 {[%clk 0:02:53.9]} 8. Bg2 {[%clk 0:02:58.7]}
8... b6 {[%clk 0:02:52.8]} 9. O-O {[%clk 0:02:59]} 9... Ba6 {[%clk 0:02:53.2]}
10. Re1 {[%clk 0:02:58.8]} 10... Rc8 {[%clk 0:02:53.3]} 11. exd5 {[%clk
0:02:58.7]} 11... exd5 {[%clk 0:02:52.2]} 12. d4 {[%clk 0:02:59.2]} 12... c4
{[%clk 0:02:47]} 13. bxc4 {[%clk 0:02:49.4]} 13... dxc4 {[%clk 0:02:47.9]} 14.
Ne5 {[%clk 0:02:49.1]} 14... Nxe5 {[%clk 0:02:43.3]} 15. dxe5 {[%clk 0:02:48.2]}
15... c3 {[%clk 0:02:26.6]} 16. Bxc3 {[%clk 0:02:27.6]} 16... Rxc3 {[%clk
0:02:24.6]} 17. exf6 {[%clk 0:02:26.7]} 17... Bxf6 {[%clk 0:02:25.5]} 18. Rc1
{[%clk 0:02:13.5]} 18... Bg5 {[%clk 0:02:06.6]} 19. Ne4 {[%clk 0:02:00.7]} 19...
Bxc1 {[%clk 0:01:46.1]} 20. Nxc3 {[%clk 0:01:59.6]} 20... Ba3 {[%clk 0:01:45.4]}
21. Nd5 {[%clk 0:01:58.4]} 21... Bc5 {[%clk 0:01:40.8]} 22. Qg4 {[%clk
0:01:50.7]} 22... Bc8 {[%clk 0:01:33.8]} 23. Qa4 {[%clk 0:01:39.1]} 23... a5
{[%clk 0:01:25.9]} 24. c4 {[%clk 0:01:35.4]} 24... Be6 {[%clk 0:01:24.1]} 25.
Qb3 {[%clk 0:01:32.6]} 25... Bxd5 {[%clk 0:01:20.5]} 26. cxd5 {[%clk 0:01:27.2]}
26... Qf6 {[%clk 0:01:21.1]} 27. Re2 {[%clk 0:01:26.1]} 27... Qa1+ {[%clk
0:01:14.6]} 28. Bf1 {[%clk 0:01:25.1]} 28... Rd8 {[%clk 0:01:14.8]} 29. Re4
{[%clk 0:01:21.4]} 29... h6 {[%clk 0:00:58.7]} 30. Rf4 {[%clk 0:01:16.1]} 30...
Qe5 {[%clk 0:00:56.4]} 31. d6 {[%clk 0:01:14.6]} 31... Rd7 {[%clk 0:00:51.8]}
32. Bb5 {[%clk 0:01:10.5]} 32... Rxd6 {[%clk 0:00:31.7]} 33. Qxf7+ {[%clk
0:01:09.3]} 33... Kh8 {[%clk 0:00:31.9]} 34. Bc4 {[%clk 0:01:02]} 34... Rd8
{[%clk 0:00:27.3]} 35. Qg6 {[%clk 0:00:59.4]} 35... Qd6 {[%clk 0:00:19.2]} 36.
Qe4 {[%clk 0:00:49.5]} 36... Qd1+ {[%clk 0:00:12.8]} 37. Kg2 {[%clk 0:00:49.2]}
37... Qd4 {[%clk 0:00:13.5]} 38. Qf5 {[%clk 0:00:45.4]} 38... Qd7 {[%clk
0:00:09.2]} 39. Qe4 {[%clk 0:00:36]} 39... Qd4 {[%clk 0:00:07.1]} 40. Qf3 {[%clk
0:00:35.5]} 40... Qd7 {[%clk 0:00:06.9]} 41. h4 {[%clk 0:00:31.5]} 41... Qd6
{[%clk 0:00:07]} 42. h5 {[%clk 0:00:29.8]} 42... Rf8 {[%clk 0:00:07.6]} 43. Bd3
{[%clk 0:00:25.7]} 43... Rxf4 {[%clk 0:00:07.5]} 44. gxf4 {[%clk 0:00:26]} 44...
Qe7 {[%clk 0:00:03.5]} 45. Qa8+ {[%clk 0:00:25.2]} 45... Qf8 {[%clk 0:00:04.1]}
46. Qe4 {[%clk 0:00:25.6]} 46... Qg8 {[%clk 0:00:03.3]} 47. Kh3 {[%clk
0:00:23.9]} 47... Bd6 {[%clk 0:00:03.4]} 48. Qf5 {[%clk 0:00:23.3]} 48... Bc5
{[%clk 0:00:03.2]} 49. a4 {[%clk 0:00:22.6]} 49... Bd6 {[%clk 0:00:03.5]} 50.
Be4 {[%clk 0:00:22.3]} 50... Bc5 {[%clk 0:00:03.7]} 51. Kg4 {[%clk 0:00:22.6]}
51... Bxf2 {[%clk 0:00:03.5]} 52. Bd5 {[%clk 0:00:19.6]} 52... Qe8 {[%clk
0:00:02.6]} 53. Bf7 {[%clk 0:00:18.9]} 53... Qe2+ {[%clk 0:00:02.4]} 54. Kh3
{[%clk 0:00:18.8]} 54... Qa6 {[%clk 0:00:01.4]} 55. Kh2 {[%clk 0:00:19.7]} 55...
Qb7 {[%clk 0:00:01.2]} 56. Bd5 {[%clk 0:00:19]} 56... Qe7 {[%clk 0:00:01.1]} 57.
Be4 {[%clk 0:00:18.8]} 57... g6 {[%clk 0:00:01.6]} 58. Kg2 {[%clk 0:00:19.7]}
58... gxf5 {[%clk 0:00:01.3]} 59. Bxf5 {[%clk 0:00:20.6]} 59... Qf6 {[%clk
0:00:01.5]} 60. Bh3 {[%clk 0:00:21.5]} 60... Qxf4 {[%clk 0:00:02.1]} 61. Kf1
{[%clk 0:00:22.4]} 61... Qg3 {[%clk 0:00:02.7]} 62. Ke2 {[%clk 0:00:23.3]} 62...
Qg1 {[%clk 0:00:03.1]} 63. Kd3 {[%clk 0:00:24.2]} 63... Qh2 {[%clk 0:00:04]} 64.
Bg4 {[%clk 0:00:24]} 64... Qh4 {[%clk 0:00:04.9]} 65. Be2 {[%clk 0:00:24.8]}
65... Qg3+ {[%clk 0:00:05.8]} 66. Ke4 {[%clk 0:00:24.2]} 66... Qh4+ {[%clk
0:00:06.7]} 67. Kf5 {[%clk 0:00:25.1]} 67... Bc5 {[%clk 0:00:07.6]} 68. Kg6
{[%clk 0:00:26]} 68... Qg5+ {[%clk 0:00:08.3]} 69. Kf7 {[%clk 0:00:26.8]} 69...
Qe5 {[%clk 0:00:08.5]} 70. Kg6 {[%clk 0:00:26.8]} 70... Qxe2 {[%clk 0:00:08.7]}
71. Kxh6 {[%clk 0:00:27.3]} 71... Qc4 {[%clk 0:00:09.3]} 72. Kg6 {[%clk
0:00:28.2]} 72... Qxa4 {[%clk 0:00:09.9]} 73. Kh6 {[%clk 0:00:29.1]} 73... Qf4+
{[%clk 0:00:10]} 74. Kg6 {[%clk 0:00:30]} 74... Qd6+ {[%clk 0:00:10.3]} 75. Kg5
{[%clk 0:00:30.1]} 75... a4 {[%clk 0:00:11.1]} 76. Kg4 {[%clk 0:00:30.9]} 76...
a3 {[%clk 0:00:10.9]} 77. Kg5 {[%clk 0:00:31.5]} 77... a2 {[%clk 0:00:11.6]} 78.
Kf5 {[%clk 0:00:31.9]} 78... a1=Q {[%clk 0:00:11.5]} 79. Kg5 {[%clk 0:00:32.8]}
79... Qae5+ {[%clk 0:00:11.9]} 80. Kg4 {[%clk 0:00:33.1]} 80... Qdd4+ {[%clk
0:00:12.7]} 81. Kf3 {[%clk 0:00:33.1]} 81... Qee3+ {[%clk 0:00:13.3]} 82. Kg2
{[%clk 0:00:34]} 82... Qdd2+ {[%clk 0:00:13.9]} 83. Kf1 {[%clk 0:00:34.9]} 83...
Qee1# {[%clk 0:00:14.2]} 0-1

[Event "Late-Titled-Tuesday-Blitz-June-25-2024"]
[Site "Chess.com"]
[Date "2024.06.25"]
[Round "4"]
[White "Akhayan"]
[Black "crazy_but_lazy"]
[Result "1/2-1/2"]
[WhiteElo "2409"]
[BlackElo "2636"]
[TimeControl "180+1"]
[EndTime "14:38:26 PDT"]
[Termination "Game drawn by repetition"]

1. e4 {[%clk 0:03:00.9]} 1... c5 {[%clk 0:02:58.9]} 2. Nf3 {[%clk 0:03:01]} 2...
g6 {[%clk 0:02:59.3]} 3. Nc3 {[%clk 0:03:00.5]} 3... Bg7 {[%clk 0:02:59.3]} 4.
Bc4 {[%clk 0:03:01]} 4... Nc6 {[%clk 0:02:57.8]} 5. O-O {[%clk 0:03:01.4]} 5...
e6 {[%clk 0:02:57.6]} 6. d4 {[%clk 0:03:01.2]} 6... cxd4 {[%clk 0:02:56.1]} 7.
Nb5 {[%clk 0:03:01.6]} 7... d6 {[%clk 0:02:56.5]} 8. Nfxd4 {[%clk 0:02:55.6]}
8... Nxd4 {[%clk 0:02:54.8]} 9. Nxd4 {[%clk 0:02:55.6]} 9... Ne7 {[%clk
0:02:52.8]} 10. c3 {[%clk 0:02:54.2]} 10... O-O {[%clk 0:02:52.5]} 11. Be3
{[%clk 0:02:54.8]} 11... d5 {[%clk 0:02:40.3]} 12. exd5 {[%clk 0:02:50.9]} 12...
Nxd5 {[%clk 0:02:41.1]} 13. Qd2 {[%clk 0:02:38.5]} 13... Nxe3 {[%clk 0:02:39.5]}
14. Qxe3 {[%clk 0:02:38.3]} 14... b6 {[%clk 0:02:29]} 15. Qf3 {[%clk 0:02:22.1]}
15... Bd7 {[%clk 0:02:14.5]} 16. Rad1 {[%clk 0:02:18.4]} 16... Qe7 {[%clk
0:02:03.4]} 17. Bb5 {[%clk 0:02:10.2]} 17... Bxb5 {[%clk 0:01:30.5]} 18. Nxb5
{[%clk 0:02:09.8]} 18... Qc5 {[%clk 0:01:31.2]} 19. Nd6 {[%clk 0:01:58.7]} 19...
Qc7 {[%clk 0:00:49.1]} 20. h3 {[%clk 0:01:53.9]} 20... Rad8 {[%clk 0:00:47.2]}
21. Ne4 {[%clk 0:01:53]} 21... f5 {[%clk 0:00:37.7]} 22. Ng5 {[%clk 0:01:47.7]}
22... Qe7 {[%clk 0:00:37.8]} 23. Rxd8 {[%clk 0:01:42]} 23... Rxd8 {[%clk
0:00:38.7]} 24. Qe3 {[%clk 0:01:28]} 24... e5 {[%clk 0:00:38.9]} 25. Nf3 {[%clk
0:01:26]} 25... e4 {[%clk 0:00:39]} 26. Nd4 {[%clk 0:01:23.8]} 26... Bxd4 {[%clk
0:00:39.1]} 27. cxd4 {[%clk 0:01:23.8]} 27... Qd6 {[%clk 0:00:39.5]} 28. Rd1
{[%clk 0:01:09.5]} 28... Qd5 {[%clk 0:00:40]} 29. b3 {[%clk 0:01:07.3]} 29...
Rc8 {[%clk 0:00:38.1]} 30. Qg5 {[%clk 0:00:56.3]} 30... Rc7 {[%clk 0:00:36.7]}
31. Qf6 {[%clk 0:00:53.8]} 31... Rf7 {[%clk 0:00:30.8]} 32. Qg5 {[%clk
0:00:34.6]} 32... Kg7 {[%clk 0:00:30.1]} 33. h4 {[%clk 0:00:33.3]} 33... h6
{[%clk 0:00:28.8]} 34. Qf4 {[%clk 0:00:30.4]} 34... Rd7 {[%clk 0:00:19.2]} 35.
h5 {[%clk 0:00:26.2]} 35... g5 {[%clk 0:00:19.1]} 36. Qb8 {[%clk 0:00:24.9]}
36... f4 {[%clk 0:00:18.5]} 37. Qe8 {[%clk 0:00:24.5]} 37... Rf7 {[%clk
0:00:15.7]} 38. Rc1 {[%clk 0:00:14.8]} 38... Qxd4 {[%clk 0:00:14.5]} 39. Rc8
{[%clk 0:00:15.3]} 39... Qd1+ {[%clk 0:00:14.7]} 40. Kh2 {[%clk 0:00:15.8]}
40... Qxh5+ {[%clk 0:00:15.3]} 41. Kg1 {[%clk 0:00:16.4]} 41... Qd1+ {[%clk
0:00:06.4]} 42. Kh2 {[%clk 0:00:16.8]} 42... Qd7 {[%clk 0:00:04.4]} 43. Qh8+
{[%clk 0:00:11.9]} 43... Kg6 {[%clk 0:00:04.9]} 44. Rd8 {[%clk 0:00:06.7]} 44...
Qc7 {[%clk 0:00:04.4]} 45. Qg8+ {[%clk 0:00:06.2]} 45... Rg7 {[%clk 0:00:03.4]}
46. Qe8+ {[%clk 0:00:06.3]} 46... Qf7 {[%clk 0:00:02.8]} 47. Qh8 {[%clk
0:00:05.8]} 47... f3 {[%clk 0:00:02.8]} 48. g3 {[%clk 0:00:05.3]} 48... e3
{[%clk 0:00:02.9]} 49. Rd6+ {[%clk 0:00:04.4]} 49... Kf5 {[%clk 0:00:03.6]} 50.
Qc8+ {[%clk 0:00:04.1]} 50... Ke4 {[%clk 0:00:03]} 51. Qc2+ {[%clk 0:00:04.2]}
51... Ke5 {[%clk 0:00:03.4]} 52. Qd3 {[%clk 0:00:02.4]} 52... Qh5+ {[%clk
0:00:01.6]} 53. Kg1 {[%clk 0:00:02.1]} 53... exf2+ {[%clk 0:00:02.5]} 54. Kxf2
{[%clk 0:00:01.8]} 54... Qh2+ {[%clk 0:00:03.2]} 55. Kxf3 {[%clk 0:00:02.3]}
55... Rf7+ {[%clk 0:00:03.2]} 56. Kg4 {[%clk 0:00:02.9]} 56... h5+ {[%clk
0:00:02.3]} 57. Kxg5 {[%clk 0:00:03.1]} 57... Qf2 {[%clk 0:00:01]} 58. Rd5+
{[%clk 0:00:01.9]} 58... Ke6 {[%clk 0:00:01.3]} 59. Rd6+ {[%clk 0:00:02.2]}
59... Ke7 {[%clk 0:00:01.8]} 60. Rd7+ {[%clk 0:00:02.4]} 60... Kf8 {[%clk
0:00:02.3]} 61. Qd6+ {[%clk 0:00:02.9]} 61... Kg8 {[%clk 0:00:01.2]} 62. Qg6+
{[%clk 0:00:03.2]} 62... Kf8 {[%clk 0:00:01.5]} 63. Qd6+ {[%clk 0:00:03.1]}
63... Kg8 {[%clk 0:00:01.6]} 64. Qg6+ {[%clk 0:00:03.3]} 64... Kf8 {[%clk
0:00:02.3]} 65. Qd6+ {[%clk 0:00:02.9]} 1/2-1/2

[Event "Late-Titled-Tuesday-Blitz-June-25-2024"]
[Site "Chess.com"]
[Date "2024.06.25"]
[Round "4"]
[White "Leebit02"]
[Black "HamedWafa4"]
[Result "1-0"]
[WhiteElo "2592"]
[BlackElo "2766"]
[TimeControl "180+1"]
[EndTime "14:38:28 PDT"]
[Termination "Leebit02 won by resignation"]

1. e4 {[%clk 0:03:00.1]} 1... e5 {[%clk 0:02:58.2]} 2. Nf3 {[%clk 0:02:59.6]}
2... Nc6 {[%clk 0:02:57.3]} 3. Bc4 {[%clk 0:02:59.5]} 3... Bc5 {[%clk
0:02:57.2]} 4. c3 {[%clk 0:02:58.6]} 4... Nf6 {[%clk 0:02:57.4]} 5. d3 {[%clk
0:02:57.2]} 5... d6 {[%clk 0:02:52.8]} 6. a4 {[%clk 0:02:55.1]} 6... a5 {[%clk
0:02:49.8]} 7. O-O {[%clk 0:02:52.1]} 7... h6 {[%clk 0:02:41.3]} 8. Re1 {[%clk
0:02:45.9]} 8... O-O {[%clk 0:02:31.2]} 9. h3 {[%clk 0:02:45.5]} 9... Bb6 {[%clk
0:02:24.6]} 10. Bb3 {[%clk 0:02:33.3]} 10... Be6 {[%clk 0:02:19]} 11. Bc2 {[%clk
0:02:19.7]} 11... Ne7 {[%clk 0:02:18.3]} 12. d4 {[%clk 0:02:16.3]} 12... Ng6
{[%clk 0:02:15.5]} 13. Nbd2 {[%clk 0:02:06]} 13... Nh5 {[%clk 0:01:45]} 14. Nf1
{[%clk 0:01:39.8]} 14... c6 {[%clk 0:01:11]} 15. d5 {[%clk 0:01:19.2]} 15...
cxd5 {[%clk 0:01:02.9]} 16. exd5 {[%clk 0:01:19]} 16... Bd7 {[%clk 0:00:46.3]}
17. Nxe5 {[%clk 0:01:19]} 17... Qh4 {[%clk 0:00:32.8]} 18. Nd3 {[%clk 0:01:07]}
18... Nhf4 {[%clk 0:00:20.5]} 19. Be3 {[%clk 0:00:56.4]} 19... Bxe3 {[%clk
0:00:17.4]} 20. Rxe3 {[%clk 0:00:55.1]} 20... Rae8 {[%clk 0:00:16.1]} 21. Nxf4
{[%clk 0:00:45.9]} 21... Nxf4 {[%clk 0:00:15.3]} 22. Qf3 {[%clk 0:00:45.5]}
22... Rxe3 {[%clk 0:00:11.9]} 23. Nxe3 {[%clk 0:00:43.3]} 23... Re8 {[%clk
0:00:12.5]} 24. Kh2 {[%clk 0:00:33.4]} 24... Qg5 {[%clk 0:00:12.8]} 25. Rd1
{[%clk 0:00:30.1]} 25... Ng6 {[%clk 0:00:12.1]} 26. Qg3 {[%clk 0:00:28.2]} 26...
Qf6 {[%clk 0:00:12]} 27. Rd2 {[%clk 0:00:25.7]} 27... Nf4 {[%clk 0:00:09.3]} 28.
Bd1 {[%clk 0:00:21.8]} 28... Ng6 {[%clk 0:00:08.5]} 29. Bg4 {[%clk 0:00:21.6]}
29... Bxa4 {[%clk 0:00:07.9]} 30. Bh5 {[%clk 0:00:19.1]} 30... Bd7 {[%clk
0:00:07.6]} 31. Rd4 {[%clk 0:00:17]} 31... Re5 {[%clk 0:00:07]} 32. Bxg6 {[%clk
0:00:16.8]} 32... fxg6 {[%clk 0:00:07.9]} 33. Rf4 {[%clk 0:00:16.8]} 33... Qe7
{[%clk 0:00:07.6]} 34. Qxg6 {[%clk 0:00:15.8]} 34... Rg5 {[%clk 0:00:08]} 35.
Qe4 {[%clk 0:00:14.4]} 35... Re5 {[%clk 0:00:07.5]} 36. Qd4 {[%clk 0:00:14.7]}
36... a4 {[%clk 0:00:07.2]} 37. Rf3 {[%clk 0:00:14.4]} 37... b5 {[%clk
0:00:07.1]} 38. Rg3 {[%clk 0:00:14.8]} 38... Kh7 {[%clk 0:00:07]} 39. Qf4 {[%clk
0:00:11.3]} 39... Re4 {[%clk 0:00:06.2]} 40. Qf3 {[%clk 0:00:11.6]} 40... Re5
{[%clk 0:00:06.4]} 41. Qd1 {[%clk 0:00:11.4]} 41... Qf6 {[%clk 0:00:06.2]} 42.
Qd3+ {[%clk 0:00:11.7]} 42... Kh8 {[%clk 0:00:06.4]} 43. Qd4 {[%clk 0:00:11.9]}
43... Qe7 {[%clk 0:00:06.1]} 44. c4 {[%clk 0:00:09.1]} 44... Kh7 {[%clk
0:00:04.8]} 45. cxb5 {[%clk 0:00:09.1]} 45... Bxb5 {[%clk 0:00:05.7]} 46. Qg4
{[%clk 0:00:07.5]} 46... Bd7 {[%clk 0:00:05.3]} 47. Qg6+ {[%clk 0:00:07.8]}
47... Kg8 {[%clk 0:00:06]} 48. Qxh6 {[%clk 0:00:07.7]} 48... Be8 {[%clk
0:00:04.5]} 49. Qf4 {[%clk 0:00:07.7]} 49... Re4 {[%clk 0:00:04.3]} 50. Qf5
{[%clk 0:00:07.2]} 50... Re5 {[%clk 0:00:04.6]} 51. Qg4 {[%clk 0:00:07.1]} 51...
Bd7 {[%clk 0:00:05.1]} 52. Qb4 {[%clk 0:00:06.5]} 52... Re4 {[%clk 0:00:05.3]}
53. Qb8+ {[%clk 0:00:06.7]} 53... Kh7 {[%clk 0:00:06]} 54. Qa7 {[%clk
0:00:05.2]} 54... Re5 {[%clk 0:00:05.8]} 55. Qa6 {[%clk 0:00:05.3]} 55... Qf6
{[%clk 0:00:06]} 56. Qd3+ {[%clk 0:00:05.5]} 56... Kg8 {[%clk 0:00:06.1]} 57.
Qd2 {[%clk 0:00:04.7]} 57... Qe7 {[%clk 0:00:05.8]} 58. Qd4 {[%clk 0:00:05.2]}
58... Qf6 {[%clk 0:00:06.2]} 59. Ng4 {[%clk 0:00:05.2]} 59... Bxg4 {[%clk
0:00:05.2]} 60. Qxg4 {[%clk 0:00:05.9]} 60... Re7 {[%clk 0:00:04.7]} 61. Rf3
{[%clk 0:00:05.3]} 61... Qe5+ {[%clk 0:00:05.3]} 62. Qf4 {[%clk 0:00:03.3]}
62... Qxd5 {[%clk 0:00:05.8]} 63. Qf8+ {[%clk 0:00:03.5]} 63... Kh7 {[%clk
0:00:06.4]} 64. Qxe7 {[%clk 0:00:04.1]} 1-0

[Event "Late-Titled-Tuesday-Blitz-June-25-2024"]
[Site "Chess.com"]
[Date "2024.06.25"]
[Round "4"]
[White "MuhittinBuker"]
[Black "stasOR4ik"]
[Result "1-0"]
[WhiteElo "2246"]
[BlackElo "2440"]
[TimeControl "180+1"]
[EndTime "14:38:29 PDT"]
[Termination "MuhittinBuker won by resignation"]

1. d4 {[%clk 0:03:00.9]} 1... e6 {[%clk 0:03:00.9]} 2. c4 {[%clk 0:03:00.1]}
2... d5 {[%clk 0:03:01.3]} 3. Nc3 {[%clk 0:02:58.4]} 3... c5 {[%clk 0:03:01.8]}
4. cxd5 {[%clk 0:02:57.6]} 4... cxd4 {[%clk 0:02:55.9]} 5. Qxd4 {[%clk
0:02:55.7]} 5... Nf6 {[%clk 0:02:52.9]} 6. Bg5 {[%clk 0:02:51.8]} 6... Nc6
{[%clk 0:02:37]} 7. Bxf6 {[%clk 0:02:49.7]} 7... gxf6 {[%clk 0:02:28.8]} 8. Qd1
{[%clk 0:02:45]} 8... exd5 {[%clk 0:02:27.1]} 9. e3 {[%clk 0:02:44.8]} 9... d4
{[%clk 0:02:17.3]} 10. exd4 {[%clk 0:02:43.3]} 10... Nxd4 {[%clk 0:02:17.2]} 11.
Nf3 {[%clk 0:02:42.9]} 11... Qe7+ {[%clk 0:02:12.5]} 12. Be2 {[%clk 0:02:34.4]}
12... Nxf3+ {[%clk 0:02:09.8]} 13. gxf3 {[%clk 0:02:35.3]} 13... Bd7 {[%clk
0:02:07.4]} 14. Qb3 {[%clk 0:02:29.9]} 14... O-O-O {[%clk 0:01:53.1]} 15. O-O-O
{[%clk 0:02:11.1]} 15... Bf5 {[%clk 0:01:52.9]} 16. Rxd8+ {[%clk 0:02:04.4]}
16... Qxd8 {[%clk 0:01:53.8]} 17. f4 {[%clk 0:02:03.1]} 17... Bh6 {[%clk
0:01:49.2]} 18. Qc4+ {[%clk 0:02:01.3]} 18... Qc7 {[%clk 0:01:45.5]} 19. Nd5
{[%clk 0:01:51.4]} 19... Qxc4+ {[%clk 0:01:34.1]} 20. Bxc4 {[%clk 0:01:52.3]}
20... Rd8 {[%clk 0:01:21.5]} 21. b3 {[%clk 0:01:43.8]} 21... b5 {[%clk 0:01:20]}
22. Ne7+ {[%clk 0:01:37.2]} 22... Kc7 {[%clk 0:01:13.3]} 23. Nxf5 {[%clk
0:01:33.9]} 23... Bxf4+ {[%clk 0:01:12.7]} 24. Kc2 {[%clk 0:01:30.4]} 24... bxc4
{[%clk 0:01:12.7]} 25. Ne3 {[%clk 0:01:10.2]} 25... cxb3+ {[%clk 0:01:08.5]} 26.
axb3 {[%clk 0:01:08.9]} 26... Kc6 {[%clk 0:01:01.8]} 27. h3 {[%clk 0:01:09]}
27... Bxe3 {[%clk 0:00:56.2]} 28. fxe3 {[%clk 0:01:08.4]} 28... Re8 {[%clk
0:00:55.3]} 29. Kd3 {[%clk 0:01:08.2]} 29... Kd5 {[%clk 0:00:55.3]} 30. Ra1
{[%clk 0:01:06.8]} 30... Re7 {[%clk 0:00:52.9]} 31. Ra5+ {[%clk 0:01:07.1]}
31... Ke6 {[%clk 0:00:50.5]} 32. Ke4 {[%clk 0:01:04.8]} 32... Rb7 {[%clk
0:00:48.2]} 33. Ra6+ {[%clk 0:00:59.3]} 33... Ke7 {[%clk 0:00:46.2]} 34. Kf3
{[%clk 0:00:57.6]} 34... Kf8 {[%clk 0:00:41.1]} 35. b4 {[%clk 0:00:51.4]} 35...
Kg7 {[%clk 0:00:40.1]} 36. b5 {[%clk 0:00:50.5]} 36... Kg6 {[%clk 0:00:36]} 37.
Ra5 {[%clk 0:00:49.8]} 37... f5 {[%clk 0:00:20.4]} 38. Kf4 {[%clk 0:00:45.8]}
38... Re7 {[%clk 0:00:18.8]} 39. Ra6+ {[%clk 0:00:37.1]} 39... f6 {[%clk
0:00:19]} 40. b6 {[%clk 0:00:36.6]} 40... axb6 {[%clk 0:00:17.7]} 41. Rxb6
{[%clk 0:00:36.4]} 41... Re4+ {[%clk 0:00:18.1]} 42. Kf3 {[%clk 0:00:36.6]}
42... Rh4 {[%clk 0:00:18]} 43. Kg3 {[%clk 0:00:36.1]} 43... Kg5 {[%clk
0:00:17.6]} 44. Rb8 {[%clk 0:00:35]} 44... Ra4 {[%clk 0:00:14.1]} 45. Rg8+
{[%clk 0:00:34.7]} 45... Kh6 {[%clk 0:00:14.4]} 46. Kf3 {[%clk 0:00:33.7]} 46...
Rb4 {[%clk 0:00:12.4]} 47. Rg1 {[%clk 0:00:32]} 47... Rh4 {[%clk 0:00:10]} 48.
Rg3 {[%clk 0:00:29.5]} 48... Rh5 {[%clk 0:00:09.3]} 49. Kf4 {[%clk 0:00:27.1]}
49... Rg5 {[%clk 0:00:07]} 50. Rxg5 {[%clk 0:00:25.2]} 50... fxg5+ {[%clk
0:00:07.3]} 51. Kxf5 {[%clk 0:00:25.5]} 51... Kh5 {[%clk 0:00:07.9]} 52. e4
{[%clk 0:00:24.7]} 52... Kh4 {[%clk 0:00:05.8]} 53. e5 {[%clk 0:00:24.8]} 53...
h5 {[%clk 0:00:06.3]} 54. e6 {[%clk 0:00:23.6]} 54... g4 {[%clk 0:00:07.2]} 55.
hxg4 {[%clk 0:00:21.3]} 55... hxg4 {[%clk 0:00:08.1]} 56. e7 {[%clk 0:00:20.6]}
56... g3 {[%clk 0:00:09]} 57. e8=Q {[%clk 0:00:20.6]} 57... g2 {[%clk
0:00:09.9]} 58. Qe4+ {[%clk 0:00:15.9]} 58... Kg3 {[%clk 0:00:09.7]} 59. Qf4+
{[%clk 0:00:14.9]} 59... Kh3 {[%clk 0:00:09.7]} 60. Qf3+ {[%clk 0:00:14.3]}
60... Kh2 {[%clk 0:00:09.5]} 61. Qh5+ {[%clk 0:00:14.4]} 61... Kg3 {[%clk
0:00:08.8]} 62. Qg4+ {[%clk 0:00:13.4]} 62... Kf2 {[%clk 0:00:08.4]} 63. Qf4+
{[%clk 0:00:12.8]} 63... Ke1 {[%clk 0:00:08.4]} 64. Qg3+ {[%clk 0:00:12.8]}
64... Kf1 {[%clk 0:00:08.9]} 65. Qf3+ {[%clk 0:00:13.1]} 65... Kg1 {[%clk
0:00:08.6]} 66. Kg4 {[%clk 0:00:12.8]} 66... Kh2 {[%clk 0:00:09.3]} 67. Qg3+
{[%clk 0:00:12.3]} 67... Kh1 {[%clk 0:00:09.7]} 68. Qh3+ {[%clk 0:00:09.1]}
68... Kg1 {[%clk 0:00:10.2]} 69. Kf3 {[%clk 0:00:09.2]} 69... Kf1 {[%clk
0:00:09.3]} 70. Qxg2+ {[%clk 0:00:09.4]} 1-0